bitfinex/quotes_SOLUSD_20260115
["timestamp","ask_amount","ask_price","bid_price","bid_amount"]
[1768455678615,11.66323713,144.41,144.36,0.6527853]
[1768455679223,24.28265191,144.42,144.37,4.67774459]
[1768455679426,20.25769262,144.42,144.39,0.6527853]
[1768455679635,20.25769262,144.42,144.39,0.6227853]
[1768455680132,24.28265191,144.42,144.39,0.6227853]
[1768455680337,19.54430037,144.42,144.39,4.02495929]
[1768455680540,19.54430037,144.42,144.38,4.02495929]
[1768455680744,12.62,144.42,144.38,4.02495929]
[1768455680942,12.62,144.42,144.37,6.92653063]
[1768455681121,19.5442677,144.42,144.36,6.92695818]
[1768455681327,23.56922699,144.42,144.36,6.92695818]
[1768455681538,23.56922699,144.42,144.38,0.72144559]
[1768455683338,10.94922699,144.42,144.38,0.72144559]
[1768455684644,11.27580436,144.42,144.38,0.72144559]
[1768455684836,4.70053774,144.41,144.38,0.72144559]
[1768455685955,0.67557845,144.41,144.38,0.72144559]
[1768455686121,13.29557845,144.44,144.39,0.69193841]
[1768455686327,4.38897233,144.43,144.39,0.69193841]
[1768455686940,11.31317093,144.43,144.39,0.69193841]
[1768455689636,7.59675354,144.42,144.39,0.69193841]
[1768455690554,0.67246279,144.42,144.39,0.69193841]
[1768455691435,10.94891218,144.43,144.39,0.69193841]
[1768455691632,11.31292522,144.43,144.39,0.69193841]
[1768455691835,7.28796593,144.43,144.39,0.69193841]
[1768455692034,34.61158431,144.47,144.35,17.31831914]
[1768455692035,0.67557845,144.48,144.41,0.69193841]
[1768455692339,0.67246279,144.45,144.41,0.69193841]
[1768455693032,0.67557845,144.46,144.43,0.69193841]
[1768455693236,0.67557845,144.47,144.44,0.69193841]
[1768455693426,0.67557845,144.47,144.44,0.66193841]
[1768455694541,4.41867233,144.46,144.41,4.02495929]
[1768455695539,4.41867233,144.46,144.42,0.69193841]
[1768455696452,0.39371304,144.46,144.43,0.69193841]
[1768455696950,4.70053774,144.47,144.43,0.69193841]
[1768455697438,0.67557845,144.47,144.44,0.69193841]
[1768455697639,0.67557845,144.47,144.44,0.66193841]
[1768455698254,12.62,144.49,144.46,4.02495929]
[1768455698427,12.62,144.49,144.45,4.02495929]
[1768455699537,12.62,144.49,144.46,0.69193841]
[1768455703659,12.62,144.49,144.46,4.7168977]
[1768455703861,0.67557845,144.52,144.49,0.69193841]
[1768455704069,13.29557845,144.52,144.49,0.69193841]
[1768455704267,24.24001197,144.52,144.48,0.69193841]
[1768455704570,13.29557845,144.52,144.48,0.69193841]
[1768455704756,13.29557845,144.52,144.49,0.69193841]
[1768455705871,0.52341304,144.53,144.5,0.69193841]
[1768455706984,0.52341304,144.53,144.49,4.7168977]
[1768455707182,0.52341304,144.53,144.49,0.69193841]
[1768455707476,4.54837233,144.53,144.49,0.69193841]
[1768455707875,0.67305679,144.52,144.49,0.69193841]
[1768455708782,4.69801608,144.52,144.49,0.69193841]
[1768455709661,4.80053774,144.53,144.49,0.69193841]
[1768455711154,0.1,144.53,144.5,0.71981516]
[1768455712582,0.1,144.53,144.52,0.71981516]
[1768455712790,0.1,144.53,144.52,0.68981516]
[1768455714262,0.1,144.53,144.49,10.94578032]
[1768455714680,0.1,144.53,144.5,0.71981516]
[1768455715060,0.1,144.54,144.53,0.71981516]
[1768455720270,0.1,144.54,144.52,0.71981516]
[1768455723099,0.8203065,144.54,144.51,0.71981516]
[1768455723275,0.50783227,144.53,144.5,0.71981516]
[1768455723893,4.84743367,144.54,144.5,0.71981516]
[1768455724193,0.50568606,144.53,144.5,0.71981516]
[1768455724387,4.84743367,144.54,144.5,0.71981516]
[1768455725085,0.82247438,144.54,144.5,0.71981516]
[1768455725286,4.84743367,144.54,144.5,0.71981516]
[1768455725870,4.84743367,144.54,144.49,0.71981516]
[1768455725871,4.53064535,144.53,144.49,0.71981516]
[1768455726294,0.50568606,144.53,144.5,0.71981516]
[1768455727296,4.53064535,144.53,144.5,0.71981516]
[1768455728888,0.50783227,144.51,144.46,0.71981516]
[1768455729091,0.72247438,144.53,144.49,0.71981516]
[1768455729403,0.72247438,144.53,144.5,0.71981516]
[1768455732810,0.1,144.54,144.52,0.71981516]
[1768455740123,0.60568606,144.54,144.51,0.71981516]
[1768455744804,0.1,144.54,144.51,0.71981516]
[1768455746021,0.1,144.54,144.51,3.29107949]
[1768455746815,0.1,144.54,144.51,0.71981516]
[1768455747019,0.6176271,144.54,144.51,0.71981516]
[1768455747222,7.53621571,144.54,144.51,0.71981516]
[1768455748428,0.70848487,144.53,144.5,0.72180773]
[1768455749422,0.51953568,144.52,144.49,0.72180773]
[1768455749737,0.51953568,144.52,144.49,3.29307206]
[1768455750533,0.51953568,144.52,144.49,0.72180773]
[1768455753528,0.51953568,144.52,144.49,3.29307206]
[1768455753726,7.62951494,144.53,144.5,0.72180773]
[1768455754730,0.5176271,144.52,144.5,0.72180773]
[1768455755929,0.5176271,144.52,144.49,3.29307206]
[1768455759829,0.5176271,144.52,144.49,10.21388611]
[1768455760037,0.71041273,144.53,144.5,0.72180773]
[1768455760368,12.72,144.54,144.51,0.72180773]
[1768455760512,0.1,144.54,144.51,0.72180773]
[1768455761015,0.1,144.54,144.52,0.72180773]
[1768455761938,0.6176271,144.54,144.49,0.72180773]
[1768455762125,0.70848487,144.53,144.5,0.72180773]
[1768455766908,0.81041273,144.54,144.5,0.72180773]
[1768455771128,0.1,144.54,144.53,0.69035128]
[1768455771538,0.04,144.54,144.53,0.69035128]
[1768455772333,0.04,144.54,144.52,0.69035128]
[1768455773433,0.75748959,144.54,144.51,0.69035128]
[1768455774142,0.04,144.54,144.51,0.69035128]
[1768455775037,0.04,144.54,144.52,0.69035128]
[1768455775245,0.04,144.54,144.52,3.26161561]
[1768455775447,0.04,144.54,144.52,0.69035128]
[1768455777842,0.75748959,144.54,144.51,0.69035128]
[1768455780332,0.75748959,144.54,144.51,3.26161561]
[1768455780949,0.75748959,144.54,144.52,0.69035128]
[1768455781249,0.04,144.54,144.53,0.69035128]
[1768455781452,0.1,144.55,144.53,0.69035128]
[1768455785047,0.60853143,144.55,144.52,3.26161561]
[1768455785439,0.1,144.55,144.53,0.69035128]
[1768455786553,0.1,144.55,144.54,0.69035128]
[1768455797468,0.1,144.55,144.53,0.69035128]
[1768455808848,0.1,144.55,144.53,7.60927138]
[1768455811373,0.1,144.55,144.54,0.71469612]
[1768455811551,0.1,144.56,144.55,0.71469612]
[1768455815189,0.1,144.56,144.54,7.63319618]
[1768455817203,0.1,144.56,144.55,0.71469612]
[1768455819595,0.78776793,144.58,144.55,7.63271756]
[1768455819798,0.1,144.58,144.56,0.71469612]
[1768455828812,0.1,144.58,144.56,7.6322379]
[1768455829910,0.1,144.58,144.56,0.71469612]
[1768455838112,0.1,144.58,144.55,6.13251229]
[1768455838833,0.65488198,144.57,144.55,6.13251229]
[1768455839826,0.65488198,144.57,144.54,6.91850006]
[1768455840206,0.75488198,144.58,144.55,0.68461862]
[1768455841507,0.1,144.6,144.58,0.68461862]
[1768455841811,0.75488198,144.6,144.57,7.60159191]
[1768455842197,0.1,144.6,144.58,0.68461862]
[1768455842403,0.1,144.61,144.58,0.68461862]
[1768455842603,0.75488198,144.61,144.58,0.68461862]
[1768455843207,4.77104025,144.61,144.58,0.68461862]
[1768455843816,0.75488198,144.61,144.58,4.70077689]
[1768455844606,0.75488198,144.61,144.58,11.61728349]
[1768455845216,0.1,144.61,144.59,4.70077689]
[1768455851113,0.75488198,144.61,144.58,7.60112522]
[1768455851339,0.75488198,144.61,144.58,11.61728349]
[1768455852534,0.75488198,144.61,144.59,4.01615827]
[1768455853824,0.75488198,144.61,144.6,4.01615827]
[1768455854026,0.75488198,144.61,144.59,4.01615827]
[1768455854226,0.75488198,144.61,144.58,4.01615827]
[1768455855460,0.75488198,144.61,144.57,4.01615827]
[1768455855741,0.65488198,144.6,144.57,4.01615827]
[1768455857448,0.65488198,144.6,144.57,1.84389025]
[1768455857650,0.65488198,144.6,144.56,2.56889025]
[1768455858351,0.5624017,144.59,144.56,2.56889025]
[1768455859134,0.5624017,144.59,144.57,2.56889025]
[1768455863246,0.5624017,144.59,144.56,0.68461862]
[1768455863449,0.5624017,144.59,144.56,2.56889025]
[1768455864727,0.5624017,144.59,144.56,3.29275715]
[1768455869650,0.5624017,144.59,144.57,0.7238669]
[1768455870258,0.5624017,144.59,144.56,3.29275715]
[1768455876566,0.5624017,144.59,144.56,0.7238669]
[1768455876766,0.5624017,144.59,144.56,3.29275715]
[1768455881844,0.5624017,144.59,144.56,0.7238669]
[1768455882046,0.5624017,144.59,144.56,3.29275715]
[1768455886880,0.5624017,144.59,144.56,0.7238669]
[1768455890585,0.5624017,144.59,144.56,3.29275715]
[1768455890984,0.5624017,144.59,144.56,10.21009503]
[1768455895579,0.5624017,144.59,144.57,0.69853629]
[1768455896463,0.80225228,144.61,144.58,3.26742654]
[1768455896659,0.80225228,144.61,144.58,0.69853629]
[1768455897297,0.80225228,144.61,144.58,3.26742654]
[1768455897579,0.80225228,144.61,144.58,0.69853629]
[1768455898164,0.80225228,144.61,144.57,6.91681779]
[1768455898367,0.80225228,144.61,144.58,0.69853629]
[1768455898566,0.80225228,144.61,144.57,10.18424433]
[1768455899663,0.80225228,144.61,144.58,3.26742654]
[1768455899864,0.80225228,144.61,144.57,10.18424433]
[1768455900471,0.80225228,144.61,144.57,9.48570804]
[1768455900787,0.80225228,144.61,144.58,0.69853629]
[1768455900988,0.80225228,144.61,144.57,3.26742654]
[1768455901161,0.80225228,144.61,144.58,0.69853629]
[1768455905386,0.80225228,144.61,144.58,3.26742654]
[1768455912394,0.5155051,144.6,144.57,3.26742654]
[1768455914811,0.5155051,144.6,144.57,0.69853629]
[1768455915194,0.5155051,144.6,144.57,3.26742654]
[1768455915687,0.80225228,144.61,144.58,3.26742654]
[1768455916007,0.1,144.62,144.6,3.26742654]
[1768455916199,0.80225228,144.63,144.61,2.56889025]
[1768455918194,0.80225228,144.63,144.6,3.26742654]
[1768455919307,0.80225228,144.63,144.6,4.71052476]
[1768455920590,0.80225228,144.63,144.61,4.71522773]
[1768455920808,0.80225228,144.63,144.61,4.01198847]
[1768455921198,0.80225228,144.63,144.6,0.70323926]
[1768455921410,0.80225228,144.63,144.6,4.71522773]
[1768455921588,0.5155051,144.62,144.58,0.70323926]
[1768455921789,0.70038481,144.61,144.57,4.71522773]
[1768455922000,0.70038481,144.61,144.58,0.70323926]
[1768455925199,0.5173539,144.6,144.57,4.72108738]
[1768455925505,0.5173539,144.6,144.58,0.70909891]
[1768455926225,0.71370652,144.62,144.59,0.70909891]
[1768455926602,4.01198847,144.61,144.55,0.70909891]
[1768455926804,4.01198847,144.6,144.55,0.70909891]
[1768455927006,4.01198847,144.59,144.55,0.70909891]
[1768455927217,4.62569499,144.59,144.55,0.70909891]
[1768455927514,0.61370652,144.59,144.55,4.72108738]
[1768455929194,0.61370652,144.59,144.55,0.70909891]
[1768455929397,0.61370652,144.59,144.56,4.72108738]
[1768455929628,0.55370653,144.59,144.56,4.72108738]
[1768455930118,7.46981904,144.59,144.56,0.70909891]
[1768455930294,6.91611251,144.59,144.55,4.72108738]
[1768455931122,10.92810098,144.59,144.55,0.70909891]
[1768455931515,11.48180751,144.59,144.55,0.70909891]
[1768455931711,7.46981904,144.59,144.55,0.70909891]
[1768455931899,7.46981904,144.59,144.55,4.72108738]
[1768455933006,0.55370653,144.6,144.57,4.72108738]
[1768455933628,7.46917851,144.61,144.58,0.70909891]
[1768455933832,7.46850683,144.62,144.59,0.70909891]
[1768455934130,7.46850683,144.62,144.59,4.72108738]
[1768455934131,0.55370653,144.62,144.59,4.72108738]
[1768455934939,7.46847524,144.62,144.59,4.72108738]
[1768455935627,7.01376871,144.62,144.59,4.72108738]
[1768455935927,7.01376871,144.62,144.59,0.70909891]
[1768455936823,0.54915946,144.61,144.58,0.70909891]
[1768455937128,0.10350159,144.6,144.57,0.70909891]
[1768455937613,7.01923667,144.6,144.57,0.70909891]
[1768455939422,4.55669136,144.59,144.55,0.70909891]
[1768455939629,0.1079136,144.58,144.55,0.70909891]
[1768455939920,10.92829351,144.59,144.55,0.70909891]
[1768455940129,6.91630504,144.59,144.56,4.72108738]
[1768455940719,6.91581997,144.6,144.57,0.70909891]
[1768455940909,6.91581997,144.6,144.57,4.72108738]
[1768455941514,4.01198847,144.61,144.57,4.72108738]
[1768455941728,0.49370654,144.6,144.57,4.72108738]
[1768455941930,0.099,144.59,144.54,0.70909891]
[1768455942110,0.0489934,144.59,144.54,0.70909891]
[1768455942309,0.0489934,144.59,144.55,4.01198847]
[1768455942530,0.0489934,144.59,144.55,4.72108738]
[1768455942735,16.61198847,144.6,144.55,0.70909891]
[1768455942926,16.61198847,144.6,144.55,4.72108738]
[1768455944309,6.91610761,144.59,144.55,4.72108738]
[1768455944724,7.31081415,144.59,144.55,4.72108738]
[1768455947331,0.099,144.58,144.55,4.72108738]
[1768455947629,7.01572674,144.58,144.55,0.70909891]
[1768455947813,0.39174947,144.57,144.54,4.72108738]
[1768455948633,0.39470654,144.59,144.56,0.70909891]
[1768455948934,0.39470654,144.59,144.55,4.01198847]
[1768455948935,0.099,144.58,144.55,4.72108738]
[1768455949425,7.01568445,144.58,144.55,0.70909891]
[1768455950432,7.01568445,144.58,144.54,0.70909891]
[1768455950929,7.30895108,144.57,144.54,0.70909891]
[1768455952827,0.39174947,144.57,144.54,0.70909891]
[1768455953223,0.39174947,144.57,144.54,4.72108738]
[1768455955560,0.33174948,144.57,144.54,4.72108738]
[1768455956838,24.20302883,144.61,144.55,4.67051816]
[1768455957043,16.61198847,144.6,144.56,0.65852969]
[1768455957218,6.91610761,144.59,144.56,0.65852969]
[1768455957640,7.25081416,144.59,144.56,0.65852969]
[1768455960142,0.33470655,144.59,144.56,0.65852969]
[1768455960335,19.51583474,144.6,144.57,0.65852969]
[1768455960534,6.91583474,144.6,144.58,0.65852969]
[1768455960842,19.85002058,144.61,144.58,0.65852969]
[1768455961221,19.85002058,144.61,144.58,4.67051816]
[1768455961415,23.86200905,144.61,144.58,0.65852969]
[1768455961823,19.85002058,144.61,144.58,0.65852969]
[1768455962028,23.86200905,144.61,144.58,0.65852969]
[1768455963440,7.01474164,144.6,144.56,4.67051816]
[1768455963941,7.01474164,144.6,144.57,0.65852969]
[1768455970647,11.02673011,144.6,144.57,0.65852969]
[1768455970849,0.33234948,144.59,144.56,0.65852969]
[1768455971362,10.92773011,144.6,144.56,0.65852969]
[1768455971544,11.26243666,144.6,144.56,0.65852969]
[1768455975763,0.33234948,144.58,144.55,0.65852969]
[1768455976771,0.33234948,144.58,144.55,4.67051816]
[1768455977148,7.25117824,144.59,144.56,0.65852969]
[1768455980370,6.91647169,144.59,144.56,0.65852969]
[1768455980557,19.85020798,144.61,144.58,0.68485761]
[1768455983175,7.01467784,144.6,144.57,0.69510396]
[1768455983360,0.099,144.6,144.57,0.69510396]
[1768455984080,22.41963009,144.61,144.57,0.69510396]
[1768455984289,2.56966092,144.58,144.54,0.69510396]
[1768455984572,0.33234948,144.59,144.55,0.69510396]
[1768455985163,7.24851839,144.59,144.55,0.69510396]
[1768455985360,12.93470655,144.61,144.57,0.69510396]
[1768455985612,12.93470655,144.61,144.58,0.69510396]
[1768455986556,19.85000754,144.61,144.58,0.69510396]
[1768455987771,12.6,144.61,144.58,0.69510396]
[1768455989389,19.61419056,144.61,144.58,0.69510396]
[1768455990985,12.6,144.61,144.58,0.69510396]
[1768455991484,12.699,144.61,144.58,0.69510396]
[1768455992093,12.6,144.61,144.58,0.69510396]
[1768455995285,0.3312732,144.66,144.58,24.20789586]
[1768455995490,0.3312732,144.66,144.58,33.00921796]
[1768455995668,9.81381542,144.66,144.58,22.63522814]
[1768455995862,7.2441545,144.66,144.61,0.69510396]
[1768455996176,5.17217464,144.65,144.59,0.69510396]
[1768455996379,2.56966092,144.63,144.58,0.69510396]
[1768455996580,2.56966092,144.63,144.59,0.69510396]
[1768455996790,37.12605689,144.66,144.59,0.69510396]
[1768455997094,2.56966092,144.63,144.59,0.69510396]
[1768455997390,2.56966092,144.63,144.58,0.69510396]
[1768455997683,0.54484622,144.61,144.58,0.69510396]
[1768455998659,3.11450714,144.61,144.58,0.69510396]
[1768455999377,0.54484622,144.61,144.58,0.69510396]
[1768455999776,9.48481029,144.62,144.58,0.69510396]
[1768455999777,6.91514937,144.62,144.58,0.69510396]
[1768455999986,20.22367815,144.63,144.58,0.69510396]
[1768456000289,9.48352432,144.64,144.6,0.69510396]
[1768456000676,10.19288115,144.64,144.6,0.69510396]
[1768456002561,3.11450714,144.63,144.6,0.69510396]
[1768456002787,0.54484622,144.63,144.6,0.69510396]
[1768456002959,3.11450714,144.63,144.6,0.69510396]
[1768456003164,0.54484622,144.63,144.6,0.69510396]
[1768456003374,3.11450714,144.63,144.6,0.69510396]
[1768456004669,0.70771172,144.62,144.58,0.69510396]
[1768456004870,3.27737264,144.62,144.58,0.69510396]
[1768456005608,3.1161358,144.61,144.58,0.69510396]
[1768456006296,0.70451907,144.58,144.55,0.69510396]
[1768456006594,3.27901775,144.59,144.55,0.69510396]
[1768456006801,0.70935683,144.59,144.55,0.69510396]
[1768456007696,10.19523525,144.59,144.55,0.69510396]
[1768456010098,3.27901775,144.59,144.55,0.69510396]
[1768456011299,0.70935683,144.59,144.55,0.69510396]
[1768456011597,3.27901775,144.59,144.55,0.69510396]
[1768456014299,0.70935683,144.59,144.55,0.69510396]
[1768456014503,3.27901775,144.59,144.55,0.69510396]
[1768456015297,0.54484622,144.58,144.55,0.69510396]
[1768456015501,0.54484622,144.58,144.54,0.70644629]
[1768456015502,3.11450714,144.58,144.54,0.70644629]
[1768456015685,0.55731753,144.56,144.53,0.70644629]
[1768456015888,3.12697845,144.56,144.53,0.70644629]
[1768456016196,0.55731753,144.56,144.53,0.70644629]
[1768456016401,10.04456338,144.56,144.53,0.70644629]
[1768456016979,3.26502604,144.55,144.51,0.70644629]
[1768456017173,0.55869801,144.54,144.51,0.70644629]
[1768456017984,3.26642047,144.55,144.51,0.70644629]
[1768456019191,0.69675955,144.55,144.51,0.70644629]
[1768456019386,3.26642047,144.55,144.51,0.70644629]
[1768456020197,2.56966092,144.54,144.51,0.70644629]
[1768456021105,7.61479184,144.55,144.51,0.70644629]
[1768456021310,10.18445276,144.55,144.51,0.70644629]
[1768456021498,2.56966092,144.54,144.51,0.70644629]
[1768456021886,0.69536512,144.53,144.5,0.70644629]
[1768456022094,0.69536512,144.53,144.49,7.62714409]
[1768456022295,3.26502604,144.53,144.49,0.70644629]
[1768456022799,2.56966092,144.52,144.49,0.70644629]
[1768456023016,3.12971193,144.5,144.47,0.70644629]
[1768456023313,3.2623199,144.49,144.45,0.70644629]
[1768456023614,2.56966092,144.49,144.45,0.70644629]
[1768456023809,2.56966092,144.48,144.45,0.70644629]
[1768456024006,2.54300492,144.48,144.45,0.70644629]
[1768456024211,3.12697845,144.49,144.45,0.70644629]
[1768456024707,10.04796357,144.49,144.45,0.70644629]
[1768456024908,2.56966092,144.48,144.45,0.70644629]
[1768456025313,10.04796357,144.49,144.45,0.70644629]
[1768456025618,0.69675955,144.52,144.47,0.70644629]
[1768456025794,22.80588443,144.52,144.47,0.70644629]
[1768456025998,3.26502604,144.5,144.47,0.70644629]
[1768456026615,3.26502604,144.5,144.46,0.70644629]
[1768456027189,20.23622351,144.52,144.47,0.70644629]
[1768456027404,0.55731753,144.51,144.47,0.70644629]
[1768456027718,3.12697845,144.51,144.47,0.70644629]
[1768456027913,19.53946396,144.52,144.48,0.70644629]
[1768456027914,12.62,144.52,144.48,0.70644629]
[1768456028123,12.56000001,144.52,144.49,0.70644629]
[1768456029717,13.11731754,144.52,144.49,0.70644629]
[1768456033100,12.56000001,144.52,144.5,0.70644629]
[1768456033304,20.23443452,144.56,144.52,0.70644629]
[1768456033609,12.62,144.56,144.54,0.70644629]
[1768456033819,7.61349301,144.58,144.55,0.70644629]
[1768456034730,0.55731753,144.57,144.54,0.70644629]
[1768456034909,3.12697845,144.57,144.54,0.70644629]
[1768456035711,0.55731753,144.57,144.54,0.70644629]
[1768456039230,0.55731753,144.57,144.53,3.27610721]
[1768456039607,7.61349301,144.58,144.54,0.70644629]
[1768456039936,0.69675955,144.58,144.54,0.70644629]
[1768456041419,0.69675955,144.58,144.54,4.72160531]
[1768456041621,0.69675955,144.58,144.54,0.70644629]
[1768456041622,7.61335647,144.58,144.54,0.70644629]
[1768456042206,0.69675955,144.58,144.54,0.70644629]
[1768456043332,0.43,144.59,144.56,0.68963356]
[1768456043511,0.43,144.59,144.56,4.70479258]
[1768456043712,0.43,144.59,144.56,0.68963356]
[1768456044533,0.43,144.59,144.57,0.68963356]
[1768456045111,0.69501096,144.6,144.57,0.68963356]
[1768456055739,20.2302911,144.61,144.57,0.68963356]
[1768456056138,0.55904863,144.6,144.57,0.68963356]
[1768456058236,7.47471082,144.6,144.57,0.68963356]
[1768456059241,0.69365134,144.59,144.57,0.68963356]
[1768456059542,0.69365134,144.59,144.56,0.68963356]
[1768456059841,0.69501096,144.6,144.57,0.68963356]
[1768456060244,7.61075061,144.6,144.57,0.68963356]
[1768456060423,0.69365134,144.58,144.54,0.68963356]
[1768456060927,0.69231878,144.56,144.53,0.68963356]
[1768456061134,0.69231878,144.56,144.52,0.68963356]
[1768456061353,7.60991392,144.56,144.52,0.68963356]
[1768456064943,11.62507294,144.56,144.52,0.68963356]
[1768456065146,7.60991392,144.56,144.53,0.68963356]
[1768456066355,0.69231878,144.56,144.53,0.68963356]
[1768456066541,13.17904863,144.58,144.55,0.68963356]
[1768456067641,20.09576384,144.58,144.55,0.68963356]
[1768456071156,0.69365134,144.57,144.54,4.71010076]
[1768456071748,0.69365134,144.57,144.54,0.69494174]
[1768456074156,0.69365134,144.57,144.55,4.01515902]
[1768456074834,0.69365134,144.57,144.55,4.71010076]
[1768456075750,20.23543832,144.58,144.55,4.71010076]
[1768456077239,0.5553736,144.57,144.55,4.01515902]
[1768456077655,0.5553736,144.57,144.54,4.71010076]
[1768456077960,0.5553736,144.57,144.54,0.69494174]
[1768456078140,7.47244214,144.57,144.54,4.71010076]
[1768456078542,7.47244214,144.57,144.54,0.69494174]
[1768456078746,7.47244214,144.57,144.54,4.71010076]
[1768456080462,7.47244214,144.57,144.54,0.69494174]
[1768456080672,7.47244214,144.57,144.54,4.71010076]
[1768456086261,0.69728962,144.56,144.54,0.69494174]
[1768456086446,0.69728962,144.56,144.53,4.71010076]
[1768456086648,0.69728962,144.56,144.54,4.01515902]
[1768456086864,7.61579165,144.57,144.54,4.71010076]
[1768456087266,7.61579165,144.57,144.54,0.69494174]
[1768456087648,7.61579165,144.57,144.54,4.71010076]
[1768456087971,0.69872311,144.57,144.54,4.71010076]
[1768456088270,0.69872311,144.57,144.52,6.91934086]
[1768456088271,12.62,144.58,144.57,0.69494174]
[1768456088446,12.62,144.58,144.56,4.71010076]
[1768456088773,20.23399278,144.58,144.56,4.01515902]
[1768456089063,20.23399278,144.58,144.55,4.71010076]
[1768456089646,0.55679276,144.57,144.55,0.69494174]
[1768456089845,0.55679276,144.57,144.54,4.71010076]
[1768456091070,20.23542627,144.58,144.55,0.69494174]
[1768456091248,13.31872311,144.58,144.56,4.01515902]
[1768456092070,7.61452712,144.6,144.57,4.71010076]
[1768456092242,20.23452712,144.6,144.58,4.01515902]
[1768456092665,7.61395424,144.61,144.58,4.71010076]
[1768456092855,7.61395424,144.61,144.59,4.01515902]
[1768456093057,7.61395424,144.61,144.59,3.988505]
[1768456094559,20.23340232,144.62,144.59,4.68344674]
[1768456094765,20.23340232,144.62,144.59,4.71010076]
[1768456095565,20.23340232,144.62,144.59,0.69494174]
[1768456099153,0.69872311,144.64,144.6,0.69494174]
[1768456099368,103.1,144.65,144.61,0.69494174]
[1768456099369,11.62712098,144.65,144.61,0.69494174]
[1768456099758,7.61196196,144.65,144.62,0.69494174]
[1768456100270,6.91323885,144.65,144.63,0.69494174]
[1768456100446,13.62999631,144.66,144.63,0.66828949]
[1768456100767,20.54280813,144.66,144.63,0.66828949]
[1768456101473,23.10981642,144.66,144.61,2.56700829]
[1768456101966,0.58175933,144.65,144.61,2.56700829]
[1768456102368,0.58175933,144.65,144.62,0.66297551]
[1768456102751,7.49502314,144.65,144.62,0.66297551]
[1768456103353,10.06203143,144.65,144.62,0.66297551]
[1768456104178,10.06203143,144.65,144.61,0.70913356]
[1768456104382,0.69755347,144.64,144.61,0.70913356]
[1768456104987,10.19629326,144.65,144.61,0.70913356]
[1768456107076,7.62928497,144.65,144.61,0.70913356]
[1768456107285,10.19629326,144.65,144.61,0.70913356]
[1768456109577,7.62928497,144.65,144.61,0.70913356]
[1768456111586,6.91326381,144.65,144.62,0.70913356]
[1768456111756,7.6277711,144.65,144.62,0.70913356]
[1768456112882,0.56613299,144.64,144.61,0.70913356]
[1768456114378,0.71302355,144.63,144.58,0.70913356]
[1768456114587,0.71302355,144.63,144.6,0.70913356]
[1768456116156,10.19699363,144.64,144.6,0.70913356]
[1768456116357,0.56463426,144.63,144.6,0.70913356]
[1768456116582,0.56463426,144.63,144.57,0.70913356]
[1768456116583,0.56613299,144.61,144.57,0.70913356]
[1768456116786,3.13314128,144.61,144.57,0.70913356]
[1768456117167,0.56613299,144.61,144.57,0.70913356]
[1768456117788,7.48132965,144.61,144.57,0.70913356]
[1768456119296,7.62926001,144.65,144.61,0.70913356]
[1768456119585,3.28151558,144.63,144.59,0.70913356]
[1768456119758,0.56613299,144.62,144.59,0.70913356]
[1768456119959,0.506133,144.62,144.59,0.70913356]
[1768456120180,3.07314129,144.62,144.59,0.70913356]
[1768456121168,9.98786896,144.62,144.59,0.70913356]
[1768456121364,9.48173596,144.62,144.58,0.70913356]
[1768456121688,2.56700829,144.61,144.57,0.70913356]
[1768456121886,0.71602116,144.61,144.57,0.70913356]
[1768456123193,3.28302945,144.61,144.57,0.70913356]
[1768456123692,0.71602116,144.61,144.57,0.70913356]
[1768456125481,7.63130306,144.61,144.57,0.70913356]
[1768456126686,7.57130307,144.61,144.58,0.70913356]
[1768456128096,10.13831136,144.61,144.58,0.70913356]
[1768456129096,9.86811551,144.62,144.58,0.70913356]
[1768456130705,7.30110722,144.62,144.58,0.70913356]
[1768456130994,9.86811551,144.62,144.58,0.70913356]
[1768456134498,7.30110722,144.62,144.58,0.70913356]
[1768456134796,10.13785333,144.62,144.58,0.70913356]
[1768456135297,7.57084504,144.62,144.58,0.70913356]
[1768456135473,10.13785333,144.62,144.58,0.70913356]
[1768456138280,0.44568485,144.61,144.58,0.70913356]
[1768456138501,9.48168122,144.62,144.58,0.70913356]
[1768456138502,10.13785333,144.62,144.58,0.70913356]
[1768456140185,0.44568485,144.61,144.58,0.70913356]
[1768456140388,10.13785333,144.62,144.58,0.70913356]
[1768456141804,7.57084504,144.62,144.58,0.70913356]
[1768456142197,10.13785333,144.62,144.58,0.70913356]
[1768456143195,0.44568485,144.61,144.58,0.70913356]
[1768456146210,20.17048247,144.63,144.59,0.72351602]
[1768456146414,20.17048247,144.63,144.6,0.72351602]
[1768456146914,13.25617211,144.63,144.6,0.72351602]
[1768456150913,22.73746837,144.63,144.6,0.72351602]
[1768456152816,0.65406724,144.61,144.58,0.72351602]
[1768456153119,10.1378981,144.62,144.58,0.72351602]
[1768456155009,7.57088981,144.62,144.58,0.72351602]
[1768456155211,10.1378981,144.62,144.58,0.72351602]
[1768456157329,3.2231804,144.62,144.58,0.72351602]
[1768456157497,12.6,144.63,144.6,0.72351602]
[1768456158205,0.44568485,144.63,144.6,0.72351602]
[1768456160303,7.3598949,144.63,144.6,0.72351602]